Workbook

Sheet FabaoConfig
A1: ID | B1: ItemID | C1: name | D1: Type | E1: magicAttribute | F1: model | G1: fragmentID | I1: ShuxingIDs | J1: ShuxingPara | K1: SkillGroupID
A2: int | B2: int | C2: string | D2: int | E2: int | F2: string | G2: int | I2: int[] | J2: int[] | K2: int
B4: 法宝对应道具ID | C4: 法宝名称 | D4: 法宝类型 1攻击型 2防御型 | E4: 法宝类型 1=金 2=木 4=水 8=火 16=土 | F4: 模型名称 | G4: 法宝对应碎片道具ID | H4: 法宝默认星级 | I4: 法宝基础属性类型 | J4: 法宝基础属性倍率 | K4: 法宝技能ID组
A5: 10001 | B5: 10001 | C5: 神龙鼎 | D5: 1 | E5: 1 | F5: fb_ding1 | G5: 11001 | H5: 1 | I5: 1 | J5: 50 | K5: 3101
B6: 10002 | C6: 破天斧 | D6: 1 | E6: 1 | F6: fb_xuanguidun | G6: 11002 | H6: 1 | I6: 2 | J6: 50 | K6: 3102
A7: 10003 | B7: 10003 | C7: 翡翠葫芦 | D7: 1 | E7: 2 | F7: fb_feicuihulu | G7: 11003 | H7: 1 | I7: 2 | J7: 50 | K7: 3201
B8: 10004 | C8: 混沌珠 | D8: 1 | E8: 2 | F8: fb_3202 | G8: 11004 | H8: 1 | I8: 1 | J8: 50 | K8: 3202
B9: 10005 | C9: 琉璃宝塔 | D9: 1 | E9: 2 | F9: fb_linglongta | G9: 11005 | H9: 1 | I9: 2 | J9: 50 | K9: 3203
A10: 10006 | B10: 10006 | C10: 九幽镇魂瓶 | D10: 1 | E10: 4 | F10: fb_BossPing | G10: 11006 | H10: 1 | I10: 3 | J10: 50 | K10: 3301
B11: 10007 | C11: 玉莲守心灯 | D11: 1 | E11: 4 | F11: fb_3302 | G11: 11007 | H11: 1 | I11: 1 | J11: 50 | K11: 3302
B12: 10008 | C12: 融灵塔 | D12: 1 | E12: 8 | F12: fb_3401 | G12: 11008 | H12: 1 | I12: 2 | J12: 50 | K12: 3401
B13: 10009 | C13: 禁元珠 | D13: 1 | E13: 8 | F13: fb_BossPing | G13: 11009 | H13: 1 | I13: 1 | J13: 50 | K13: 3402
A14: 10010 | B14: 10010 | C14: 玄龟盾 | D14: 1 | E14: 16 | F14: fb_xuanguidun | G14: 11010 | H14: 1 | I14: 1;2 | J14: 25;25 | K14: 3501
B15: 10011 | C15: 天殇血刃剑 | D15: 1 | E15: 16 | F15: fb_ding1 | G15: 11011 | H15: 1 | I15: 1 | J15: 50 | K15: 3502

Sheet FabaoPowerupConfig
A1: ID | B1: Power | C1: HP | D1: DEF | E1: ATK | G1: PowerupItemIDs | H1: PowerupItemCosts | M1: PromotePieceNum | N1: SkillLevel
A2: int | B2: int | C2: int | D2: int | E2: int | G2: int[] | H2: int[] | M2: int[] | N2: int
B4: 法宝的基础强度成长 | C4: 法宝的生命标准成长1 | D4: 法宝的防御标准成长2 | E4: 法宝的攻击标准成长3 | G4: 强化所需道具ID | H4: 强化所需道具数量 | I4: 道具1 | J4: 数量1 | K4: 道具2 | L4: 数量2 | M4: 突破所需对应碎片数量 | N4: 对应的技能等级
A5: 1 | B5: =ROUND([1]主表!$B3*0.5,0) -> 50 | C5: =B5*20 -> 1000 | D5: =B5 -> 50 | E5: =B5 -> 50 | G5: =_xlfn.TEXTJOIN(";",1,I5,K5) -> 1001;1006 | H5: =_xlfn.TEXTJOIN(";",1,J5,L5) -> 100;100 | I5: 1001 | J5: 100 | K5: 1006 | L5: 100 | M5: -1 | N5: 1
A6: 2 | B6: =ROUND([1]主表!$B4*0.5,0) -> 51 | C6: =B6*20 -> 1020 | D6: =B6 -> 51 | E6: =B6 -> 51 | G6: =_xlfn.TEXTJOIN(";",1,I6,K6) -> 1001;1006 | H6: =_xlfn.TEXTJOIN(";",1,J6,L6) -> 100;100 | I6: 1001 | J6: 100 | K6: 1006 | L6: 100 | M6: -1 | N6: 1
A7: 3 | B7: =ROUND([1]主表!$B5*0.5,0) -> 52 | C7: 1040 | D7: 52 | E7: 52 | G7: 1001;1006 | H7: 100;100 | I7: 1001 | J7: 100 | K7: 1006 | L7: 100 | M7: -1 | N7: 1
A8: 4 | B8: =ROUND([1]主表!$B6*0.5,0) -> 53 | C8: 1060 | D8: 53 | E8: 53 | G8: 1001;1006 | H8: 100;100 | I8: 1001 | J8: 100 | K8: 1006 | L8: 100 | M8: -1 | N8: 1
A9: 5 | B9: =ROUND([1]主表!$B7*0.5,0) -> 54 | C9: 1080 | D9: 54 | E9: 54 | G9: 1001;1006 | H9: 100;100 | I9: 1001 | J9: 100 | K9: 1006 | L9: 100 | M9: -1 | N9: 1 | R9: 200 | S9: 150 | T9: =R9/S9 -> 1.333333333
A10: 6 | B10: =ROUND([1]主表!$B8*0.5,0) -> 55 | C10: 1100 | D10: 55 | E10: 55 | G10: 1001;1006 | H10: 100;100 | I10: 1001 | J10: 100 | K10: 1006 | L10: 100 | M10: -1 | N10: 1 | R10: 16 | S10: 9 | T10: =R10/S10 -> 1.777777778
A11: 7 | B11: =ROUND([1]主表!$B9*0.5,0) -> 56 | C11: 1120 | D11: 56 | E11: 56 | G11: 1001;1006 | H11: 100;100 | I11: 1001 | J11: 100 | K11: 1006 | L11: 100 | M11: -1 | N11: 1
A12: 8 | B12: =ROUND([1]主表!$B10*0.5,0) -> 57 | C12: 1140 | D12: 57 | E12: 57 | G12: 1001;1006 | H12: 100;100 | I12: 1001 | J12: 100 | K12: 1006 | L12: 100 | M12: -1 | N12: 1
A13: 9 | B13: =ROUND([1]主表!$B11*0.5,0) -> 58 | C13: 1160 | D13: 58 | E13: 58 | G13: 1001;1006 | H13: 100;100 | I13: 1001 | J13: 100 | K13: 1006 | L13: 100 | M13: -1 | N13: 1
A14: 10 | B14: =ROUND([1]主表!$B12*0.5,0) -> 61 | C14: 1220 | D14: 61 | E14: 61 | G14: 1001;1006 | H14: 100;100 | I14: 1001 | J14: 100 | K14: 1006 | L14: 100 | M14: -1 | N14: 1
A15: 11 | B15: =ROUND([1]主表!$B13*0.5,0) -> 62 | C15: 1240 | D15: 62 | E15: 62 | G15: 1001;1006 | H15: 100;100 | I15: 1001 | J15: 100 | K15: 1006 | L15: 100 | M15: -1 | N15: 1
A16: 12 | B16: =ROUND([1]主表!$B14*0.5,0) -> 63 | C16: 1260 | D16: 63 | E16: 63 | G16: 1001;1006 | H16: 100;100 | I16: 1001 | J16: 100 | K16: 1006 | L16: 100 | M16: -1 | N16: 1
A17: 13 | B17: =ROUND([1]主表!$B15*0.5,0) -> 64 | C17: 1280 | D17: 64 | E17: 64 | G17: 1001;1006 | H17: 100;100 | I17: 1001 | J17: 100 | K17: 1006 | L17: 100 | M17: -1 | N17: 1
A18: 14 | B18: =ROUND([1]主表!$B16*0.5,0) -> 65 | C18: 1300 | D18: 65 | E18: 65 | G18: 1001;1006 | H18: 100;100 | I18: 1001 | J18: 100 | K18: 1006 | L18: 100 | M18: -1 | N18: 1
A19: 15 | B19: =ROUND([1]主表!$B17*0.5,0) -> 66 | C19: 1320 | D19: 66 | E19: 66 | G19: 1001;1006 | H19: 100;100 | I19: 1001 | J19: 100 | K19: 1006 | L19: 100 | M19: -1 | N19: 1
A20: 16 | B20: =ROUND([1]主表!$B18*0.5,0) -> 67 | C20: 1340 | D20: 67 | E20: 67 | G20: 1001;1006 | H20: 100;100 | I20: 1001 | J20: 100 | K20: 1006 | L20: 100 | M20: -1 | N20: 1
A21: 17 | B21: =ROUND([1]主表!$B19*0.5,0) -> 68 | C21: 1360 | D21: 68 | E21: 68 | G21: 1001;1006 | H21: 100;100 | I21: 1001 | J21: 100 | K21: 1006 | L21: 100 | M21: -1 | N21: 1
A22: 18 | B22: =ROUND([1]主表!$B20*0.5,0) -> 69 | C22: 1380 | D22: 69 | E22: 69 | G22: 1001;1006 | H22: 100;100 | I22: 1001 | J22: 100 | K22: 1006 | L22: 100 | M22: -1 | N22: 1
A23: 19 | B23: =ROUND([1]主表!$B21*0.5,0) -> 70 | C23: 1400 | D23: 70 | E23: 70 | G23: 1001;1006 | H23: 100;100 | I23: 1001 | J23: 100 | K23: 1006 | L23: 100 | M23: -1 | N23: 1
A24: 20 | B24: =ROUND([1]主表!$B22*0.5,0) -> 75 | C24: 1500 | D24: 75 | E24: 75 | G24: 1001;1006 | H24: 100;100 | I24: 1001 | J24: 100 | K24: 1006 | L24: 100 | M24: -1 | N24: 1
A25: 21 | B25: =ROUND([1]主表!$B23*0.5,0) -> 76 | C25: 1520 | D25: 76 | E25: 76 | G25: 1001;1006 | H25: 100;100 | I25: 1001 | J25: 100 | K25: 1006 | L25: 100 | M25: -1 | N25: 1
A26: 22 | B26: =ROUND([1]主表!$B24*0.5,0) -> 77 | C26: 1540 | D26: 77 | E26: 77 | G26: 1001;1006 | H26: 100;100 | I26: 1001 | J26: 100 | K26: 1006 | L26: 100 | M26: -1 | N26: 1
A27: 23 | B27: =ROUND([1]主表!$B25*0.5,0) -> 79 | C27: 1580 | D27: 79 | E27: 79 | G27: 1001;1006 | H27: 100;100 | I27: 1001 | J27: 100 | K27: 1006 | L27: 100 | M27: -1 | N27: 1
A28: 24 | B28: =ROUND([1]主表!$B26*0.5,0) -> 80 | C28: 1600 | D28: 80 | E28: 80 | G28: 1001;1006 | H28: 100;100 | I28: 1001 | J28: 100 | K28: 1006 | L28: 100 | M28: -1 | N28: 1
A29: 25 | B29: =ROUND([1]主表!$B27*0.5,0) -> 81 | C29: 1620 | D29: 81 | E29: 81 | G29: 1001;1006 | H29: 100;100 | I29: 1001 | J29: 100 | K29: 1006 | L29: 100 | M29: -1 | N29: 1
A30: 26 | B30: =ROUND([1]主表!$B28*0.5,0) -> 83 | C30: 1660 | D30: 83 | E30: 83 | G30: 1001;1006 | H30: 100;100 | I30: 1001 | J30: 100 | K30: 1006 | L30: 100 | M30: -1 | N30: 1
A31: 27 | B31: =ROUND([1]主表!$B29*0.5,0) -> 84 | C31: 1680 | D31: 84 | E31: 84 | G31: 1001;1006 | H31: 100;100 | I31: 1001 | J31: 100 | K31: 1006 | L31: 100 | M31: -1 | N31: 1
A32: 28 | B32: =ROUND([1]主表!$B30*0.5,0) -> 85 | C32: 1700 | D32: 85 | E32: 85 | G32: 1001;1006 | H32: 100;100 | I32: 1001 | J32: 100 | K32: 1006 | L32: 100 | M32: -1 | N32: 1
A33: 29 | B33: =ROUND([1]主表!$B31*0.5,0) -> 87 | C33: 1740 | D33: 87 | E33: 87 | G33: 1001;1006 | H33: 100;100 | I33: 1001 | J33: 100 | K33: 1006 | L33: 100 | M33: -1 | N33: 1
A34: 30 | B34: =ROUND([1]主表!$B32*0.5,0) -> 98 | C34: 1960 | D34: 98 | E34: 98 | G34: 1001;1006 | H34: 100;100 | I34: 1001 | J34: 100 | K34: 1006 | L34: 100 | M34: -1 | N34: 1
A35: 31 | B35: =ROUND([1]主表!$B33*0.5,0) -> 100 | C35: 2000 | D35: 100 | E35: 100 | G35: 1001;1006 | H35: 100;100 | I35: 1001 | J35: 100 | K35: 1006 | L35: 100 | M35: 10 | N35: 2
A36: 32 | B36: =ROUND([1]主表!$B34*0.5,0) -> 102 | C36: 2040 | D36: 102 | E36: 102 | G36: 1001;1006 | H36: 100;100 | I36: 1001 | J36: 100 | K36: 1006 | L36: 100 | M36: -1 | N36: 2
A37: 33 | B37: =ROUND([1]主表!$B35*0.5,0) -> 103 | C37: 2060 | D37: 103 | E37: 103 | G37: 1001;1006 | H37: 100;100 | I37: 1001 | J37: 100 | K37: 1006 | L37: 100 | M37: -1 | N37: 2
A38: 34 | B38: =ROUND([1]主表!$B36*0.5,0) -> 105 | C38: 2100 | D38: 105 | E38: 105 | G38: 1001;1006 | H38: 100;100 | I38: 1001 | J38: 100 | K38: 1006 | L38: 100 | M38: -1 | N38: 2
A39: 35 | B39: =ROUND([1]主表!$B37*0.5,0) -> 107 | C39: 2140 | D39: 107 | E39: 107 | G39: 1001;1006 | H39: 100;100 | I39: 1001 | J39: 100 | K39: 1006 | L39: 100 | M39: -1 | N39: 2
A40: 36 | B40: =ROUND([1]主表!$B38*0.5,0) -> 108 | C40: 2160 | D40: 108 | E40: 108 | G40: 1001;1006 | H40: 100;100 | I40: 1001 | J40: 100 | K40: 1006 | L40: 100 | M40: -1 | N40: 2
A41: 37 | B41: =ROUND([1]主表!$B39*0.5,0) -> 110 | C41: 2200 | D41: 110 | E41: 110 | G41: 1001;1006 | H41: 100;100 | I41: 1001 | J41: 100 | K41: 1006 | L41: 100 | M41: -1 | N41: 2
A42: 38 | B42: =ROUND([1]主表!$B40*0.5,0) -> 112 | C42: 2240 | D42: 112 | E42: 112 | G42: 1001;1006 | H42: 100;100 | I42: 1001 | J42: 100 | K42: 1006 | L42: 100 | M42: -1 | N42: 2
A43: 39 | B43: =ROUND([1]主表!$B41*0.5,0) -> 114 | C43: 2280 | D43: 114 | E43: 114 | G43: 1001;1006 | H43: 100;100 | I43: 1001 | J43: 100 | K43: 1006 | L43: 100 | M43: -1 | N43: 2
A44: 40 | B44: =ROUND([1]主表!$B42*0.5,0) -> 121 | C44: 2420 | D44: 121 | E44: 121 | G44: 1001;1006 | H44: 100;100 | I44: 1001 | J44: 100 | K44: 1006 | L44: 100 | M44: -1 | N44: 2
A45: 41 | B45: =ROUND([1]主表!$B43*0.5,0) -> 123 | C45: 2460 | D45: 123 | E45: 123 | G45: 1001;1006 | H45: 100;100 | I45: 1001 | J45: 100 | K45: 1006 | L45: 100 | M45: -1 | N45: 2
A46: 42 | B46: =ROUND([1]主表!$B44*0.5,0) -> 125 | C46: 2500 | D46: 125 | E46: 125 | G46: 1001;1006 | H46: 100;100 | I46: 1001 | J46: 100 | K46: 1006 | L46: 100 | M46: -1 | N46: 2
A47: 43 | B47: =ROUND([1]主表!$B45*0.5,0) -> 127 | C47: 2540 | D47: 127 | E47: 127 | G47: 1001;1006 | H47: 100;100 | I47: 1001 | J47: 100 | K47: 1006 | L47: 100 | M47: -1 | N47: 2
A48: 44 | B48: =ROUND([1]主表!$B46*0.5,0) -> 130 | C48: 2600 | D48: 130 | E48: 130 | G48: 1001;1006 | H48: 100;100 | I48: 1001 | J48: 100 | K48: 1006 | L48: 100 | M48: -1 | N48: 2
A49: 45 | B49: =ROUND([1]主表!$B47*0.5,0) -> 132 | C49: 2640 | D49: 132 | E49: 132 | G49: 1001;1006 | H49: 100;100 | I49: 1001 | J49: 100 | K49: 1006 | L49: 100 | M49: -1 | N49: 2
A50: 46 | B50: =ROUND([1]主表!$B48*0.5,0) -> 134 | C50: 2680 | D50: 134 | E50: 134 | G50: 1001;1006 | H50: 100;100 | I50: 1001 | J50: 100 | K50: 1006 | L50: 100 | M50: -1 | N50: 2
A51: 47 | B51: =ROUND([1]主表!$B49*0.5,0) -> 136 | C51: 2720 | D51: 136 | E51: 136 | G51: 1001;1006 | H51: 100;100 | I51: 1001 | J51: 100 | K51: 1006 | L51: 100 | M51: -1 | N51: 2
A52: 48 | B52: =ROUND([1]主表!$B50*0.5,0) -> 138 | C52: 2760 | D52: 138 | E52: 138 | G52: 1001;1006 | H52: 100;100 | I52: 1001 | J52: 100 | K52: 1006 | L52: 100 | M52: -1 | N52: 2
A53: 49 | B53: =ROUND([1]主表!$B51*0.5,0) -> 141 | C53: 2820 | D53: 141 | E53: 141 | G53: 1001;1006 | H53: 100;100 | I53: 1001 | J53: 100 | K53: 1006 | L53: 100 | M53: -1 | N53: 2
A54: 50 | B54: =ROUND([1]主表!$B52*0.5,0) -> 150 | C54: 3000 | D54: 150 | E54: 150 | G54: 1001;1006 | H54: 100;100 | I54: 1001 | J54: 100 | K54: 1006 | L54: 100 | M54: -1 | N54: 2
A55: 51 | B55: =ROUND([1]主表!$B53*0.5,0) -> 152 | C55: 3040 | D55: 152 | E55: 152 | G55: 1001;1006 | H55: 100;100 | I55: 1001 | J55: 100 | K55: 1006 | L55: 100 | M55: -1 | N55: 2
A56: 52 | B56: =ROUND([1]主表!$B54*0.5,0) -> 155 | C56: 3100 | D56: 155 | E56: 155 | G56: 1001;1006 | H56: 100;100 | I56: 1001 | J56: 100 | K56: 1006 | L56: 100 | M56: -1 | N56: 2
A57: 53 | B57: =ROUND([1]主表!$B55*0.5,0) -> 157 | C57: 3140 | D57: 157 | E57: 157 | G57: 1001;1006 | H57: 100;100 | I57: 1001 | J57: 100 | K57: 1006 | L57: 100 | M57: -1 | N57: 2
A58: 54 | B58: =ROUND([1]主表!$B56*0.5,0) -> 160 | C58: 3200 | D58: 160 | E58: 160 | G58: 1001;1006 | H58: 100;100 | I58: 1001 | J58: 100 | K58: 1006 | L58: 100 | M58: -1 | N58: 2
A59: 55 | B59: =ROUND([1]主表!$B57*0.5,0) -> 163 | C59: 3260 | D59: 163 | E59: 163 | G59: 1001;1006 | H59: 100;100 | I59: 1001 | J59: 100 | K59: 1006 | L59: 100 | M59: -1 | N59: 2
A60: 56 | B60: =ROUND([1]主表!$B58*0.5,0) -> 165 | C60: 3300 | D60: 165 | E60: 165 | G60: 1001;1006 | H60: 100;100 | I60: 1001 | J60: 100 | K60: 1006 | L60: 100 | M60: -1 | N60: 2
A61: 57 | B61: =ROUND([1]主表!$B59*0.5,0) -> 168 | C61: 3360 | D61: 168 | E61: 168 | G61: 1001;1006 | H61: 100;100 | I61: 1001 | J61: 100 | K61: 1006 | L61: 100 | M61: -1 | N61: 2
A62: 58 | B62: =ROUND([1]主表!$B60*0.5,0) -> 171 | C62: 3420 | D62: 171 | E62: 171 | G62: 1001;1006 | H62: 100;100 | I62: 1001 | J62: 100 | K62: 1006 | L62: 100 | M62: -1 | N62: 2
A63: 59 | B63: =ROUND([1]主表!$B61*0.5,0) -> 174 | C63: 3480 | D63: 174 | E63: 174 | G63: 1001;1006 | H63: 100;100 | I63: 1001 | J63: 100 | K63: 1006 | L63: 100 | M63: -1 | N63: 2
A64: 60 | B64: =ROUND([1]主表!$B62*0.5,0) -> 196 | C64: 3920 | D64: 196 | E64: 196 | G64: 1001;1006 | H64: 100;100 | I64: 1001 | J64: 100 | K64: 1006 | L64: 100 | M64: -1 | N64: 2
A65: 61 | B65: =ROUND([1]主表!$B63*0.5,0) -> 200 | C65: 4000 | D65: 200 | E65: 200 | G65: 1001;1006 | H65: 100;100 | I65: 1001 | J65: 100 | K65: 1006 | L65: 100 | M65: -1 | N65: 2
A66: 62 | B66: =ROUND([1]主表!$B64*0.5,0) -> 203 | C66: 4060 | D66: 203 | E66: 203 | G66: 1001;1006 | H66: 100;100 | I66: 1001 | J66: 100 | K66: 1006 | L66: 100 | M66: 20 | N66: =N35+1 -> 3
A67: 63 | B67: =ROUND([1]主表!$B65*0.5,0) -> 206 | C67: 4120 | D67: 206 | E67: 206 | G67: 1001;1006 | H67: 100;100 | I67: 1001 | J67: 100 | K67: 1006 | L67: 100 | M67: -1 | N67: =N36+1 -> 3
A68: 64 | B68: =ROUND([1]主表!$B66*0.5,0) -> 210 | C68: 4200 | D68: 210 | E68: 210 | G68: 1001;1006 | H68: 100;100 | I68: 1001 | J68: 100 | K68: 1006 | L68: 100 | M68: -1 | N68: 3
A69: 65 | B69: =ROUND([1]主表!$B67*0.5,0) -> 213 | C69: 4260 | D69: 213 | E69: 213 | G69: 1001;1006 | H69: 100;100 | I69: 1001 | J69: 100 | K69: 1006 | L69: 100 | M69: -1 | N69: 3
A70: 66 | B70: =ROUND([1]主表!$B68*0.5,0) -> 217 | C70: =B70*20 -> 4340 | D70: =B70 -> 217 | E70: =B70 -> 217 | G70: =_xlfn.TEXTJOIN(";",1,I70,K70) -> 1001;1006 | H70: =_xlfn.TEXTJOIN(";",1,J70,L70) -> 100;100 | I70: 1001 | J70: 100 | K70: 1006 | L70: 100 | M70: -1 | N70: 3
A71: 67 | B71: =ROUND([1]主表!$B69*0.5,0) -> 220 | C71: 4400 | D71: 220 | E71: 220 | G71: 1001;1006 | H71: 100;100 | I71: 1001 | J71: 100 | K71: 1006 | L71: 100 | M71: -1 | N71: 3
A72: 68 | B72: =ROUND([1]主表!$B70*0.5,0) -> 224 | C72: 4480 | D72: 224 | E72: 224 | G72: 1001;1006 | H72: 100;100 | I72: 1001 | J72: 100 | K72: 1006 | L72: 100 | M72: -1 | N72: 3
A73: 69 | B73: =ROUND([1]主表!$B71*0.5,0) -> 228 | C73: 4560 | D73: 228 | E73: 228 | G73: 1001;1006 | H73: 100;100 | I73: 1001 | J73: 100 | K73: 1006 | L73: 100 | M73: -1 | N73: 3
A74: 70 | B74: =ROUND([1]主表!$B72*0.5,0) -> 243 | C74: 4860 | D74: 243 | E74: 243 | G74: 1001;1006 | H74: 100;100 | I74: 1001 | J74: 100 | K74: 1006 | L74: 100 | M74: -1 | N74: 3
A75: 71 | B75: =ROUND([1]主表!$B73*0.5,0) -> 247 | C75: 4940 | D75: 247 | E75: 247 | G75: 1001;1006 | H75: 100;100 | I75: 1001 | J75: 100 | K75: 1006 | L75: 100 | M75: -1 | N75: 3
A76: 72 | B76: =ROUND([1]主表!$B74*0.5,0) -> 251 | C76: 5020 | D76: 251 | E76: 251 | G76: 1001;1006 | H76: 100;100 | I76: 1001 | J76: 100 | K76: 1006 | L76: 100 | M76: -1 | N76: 3
A77: 73 | B77: =ROUND([1]主表!$B75*0.5,0) -> 255 | C77: 5100 | D77: 255 | E77: 255 | G77: 1001;1006 | H77: 100;100 | I77: 1001 | J77: 100 | K77: 1006 | L77: 100 | M77: -1 | N77: 3
A78: 74 | B78: =ROUND([1]主表!$B76*0.5,0) -> 259 | C78: 5180 | D78: 259 | E78: 259 | G78: 1001;1006 | H78: 100;100 | I78: 1001 | J78: 100 | K78: 1006 | L78: 100 | M78: -1 | N78: 3
A79: 75 | B79: =ROUND([1]主表!$B77*0.5,0) -> 263 | C79: 5260 | D79: 263 | E79: 263 | G79: 1001;1006 | H79: 100;100 | I79: 1001 | J79: 100 | K79: 1006 | L79: 100 | M79: -1 | N79: 3
A80: 76 | B80: =ROUND([1]主表!$B78*0.5,0) -> 268 | C80: 5360 | D80: 268 | E80: 268 | G80: 1001;1006 | H80: 100;100 | I80: 1001 | J80: 100 | K80: 1006 | L80: 100 | M80: -1 | N80: 3
A81: 77 | B81: =ROUND([1]主表!$B79*0.5,0) -> 272 | C81: 5440 | D81: 272 | E81: 272 | G81: 1001;1006 | H81: 100;100 | I81: 1001 | J81: 100 | K81: 1006 | L81: 100 | M81: -1 | N81: 3
A82: 78 | B82: =ROUND([1]主表!$B80*0.5,0) -> 276 | C82: 5520 | D82: 276 | E82: 276 | G82: 1001;1006 | H82: 100;100 | I82: 1001 | J82: 100 | K82: 1006 | L82: 100 | M82: -1 | N82: 3
A83: 79 | B83: =ROUND([1]主表!$B81*0.5,0) -> 281 | C83: 5620 | D83: 281 | E83: 281 | G83: 1001;1006 | H83: 100;100 | I83: 1001 | J83: 100 | K83: 1006 | L83: 100 | M83: -1 | N83: 3
A84: 80 | B84: =ROUND([1]主表!$B82*0.5,0) -> 300 | C84: 6000 | D84: 300 | E84: 300 | G84: 1001;1006 | H84: 100;100 | I84: 1001 | J84: 100 | K84: 1006 | L84: 100 | M84: -1 | N84: 3
A85: 81 | B85: =ROUND([1]主表!$B83*0.5,0) -> 304 | C85: 6080 | D85: 304 | E85: 304 | G85: 1001;1006 | H85: 100;100 | I85: 1001 | J85: 100 | K85: 1006 | L85: 100 | M85: -1 | N85: 3
A86: 82 | B86: =ROUND([1]主表!$B84*0.5,0) -> 309 | C86: 6180 | D86: 309 | E86: 309 | G86: 1001;1006 | H86: 100;100 | I86: 1001 | J86: 100 | K86: 1006 | L86: 100 | M86: -1 | N86: 3
A87: 83 | B87: =ROUND([1]主表!$B85*0.5,0) -> 315 | C87: 6300 | D87: 315 | E87: 315 | G87: 1001;1006 | H87: 100;100 | I87: 1001 | J87: 100 | K87: 1006 | L87: 100 | M87: -1 | N87: 3
A88: 84 | B88: =ROUND([1]主表!$B86*0.5,0) -> 320 | C88: 6400 | D88: 320 | E88: 320 | G88: 1001;1006 | H88: 100;100 | I88: 1001 | J88: 100 | K88: 1006 | L88: 100 | M88: -1 | N88: 3
A89: 85 | B89: =ROUND([1]主表!$B87*0.5,0) -> 325 | C89: 6500 | D89: 325 | E89: 325 | G89: 1001;1006 | H89: 100;100 | I89: 1001 | J89: 100 | K89: 1006 | L89: 100 | M89: -1 | N89: 3
A90: 86 | B90: =ROUND([1]主表!$B88*0.5,0) -> 330 | C90: 6600 | D90: 330 | E90: 330 | G90: 1001;1006 | H90: 100;100 | I90: 1001 | J90: 100 | K90: 1006 | L90: 100 | M90: -1 | N90: 3
A91: 87 | B91: =ROUND([1]主表!$B89*0.5,0) -> 336 | C91: 6720 | D91: 336 | E91: 336 | G91: 1001;1006 | H91: 100;100 | I91: 1001 | J91: 100 | K91: 1006 | L91: 100 | M91: -1 | N91: 3
A92: 88 | B92: =ROUND([1]主表!$B90*0.5,0) -> 341 | C92: 6820 | D92: 341 | E92: 341 | G92: 1001;1006 | H92: 100;100 | I92: 1001 | J92: 100 | K92: 1006 | L92: 100 | M92: -1 | N92: 3
A93: 89 | B93: =ROUND([1]主表!$B91*0.5,0) -> 347 | C93: 6940 | D93: 347 | E93: 347 | G93: 1001;1006 | H93: 100;100 | I93: 1001 | J93: 100 | K93: 1006 | L93: 100 | M93: -1 | N93: 3
A94: 90 | B94: =ROUND([1]主表!$B92*0.5,0) -> 393 | C94: 7860 | D94: 393 | E94: 393 | G94: 1001;1006 | H94: 100;100 | I94: 1001 | J94: 100 | K94: 1006 | L94: 100 | M94: -1 | N94: 3
A95: 91 | B95: =ROUND([1]主表!$B93*0.5,0) -> 399 | C95: 7980 | D95: 399 | E95: 399 | G95: 1001;1006 | H95: 100;100 | I95: 1001 | J95: 100 | K95: 1006 | L95: 100 | M95: -1 | N95: 3
A96: 92 | B96: =ROUND([1]主表!$B94*0.5,0) -> 406 | C96: 8120 | D96: 406 | E96: 406 | G96: 1001;1006 | H96: 100;100 | I96: 1001 | J96: 100 | K96: 1006 | L96: 100 | M96: -1 | N96: 3
A97: 93 | B97: =ROUND([1]主表!$B95*0.5,0) -> 412 | C97: 8240 | D97: 412 | E97: 412 | G97: 1001;1006 | H97: 100;100 | I97: 1001 | J97: 100 | K97: 1006 | L97: 100 | M97: 30 | N97: 4
A98: 94 | B98: =ROUND([1]主表!$B96*0.5,0) -> 419 | C98: 8380 | D98: 419 | E98: 419 | G98: 1001;1006 | H98: 100;100 | I98: 1001 | J98: 100 | K98: 1006 | L98: 100 | M98: -1 | N98: 4
A99: 95 | B99: =ROUND([1]主表!$B97*0.5,0) -> 426 | C99: 8520 | D99: 426 | E99: 426 | G99: 1001;1006 | H99: 100;100 | I99: 1001 | J99: 100 | K99: 1006 | L99: 100 | M99: -1 | N99: 4
A100: 96 | B100: =ROUND([1]主表!$B98*0.5,0) -> 433 | C100: 8660 | D100: 433 | E100: 433 | G100: 1001;1006 | H100: 100;100 | I100: 1001 | J100: 100 | K100: 1006 | L100: 100 | M100: -1 | N100: 4
A101: 97 | B101: =ROUND([1]主表!$B99*0.5,0) -> 440 | C101: 8800 | D101: 440 | E101: 440 | G101: 1001;1006 | H101: 100;100 | I101: 1001 | J101: 100 | K101: 1006 | L101: 100 | M101: -1 | N101: 4
A102: 98 | B102: =ROUND([1]主表!$B100*0.5,0) -> 447 | C102: 8940 | D102: 447 | E102: 447 | G102: 1001;1006 | H102: 100;100 | I102: 1001 | J102: 100 | K102: 1006 | L102: 100 | M102: -1 | N102: 4
A103: 99 | B103: =ROUND([1]主表!$B101*0.5,0) -> 455 | C103: 9100 | D103: 455 | E103: 455 | G103: 1001;1006 | H103: 100;100 | I103: 1001 | J103: 100 | K103: 1006 | L103: 100 | M103: -1 | N103: 4
A104: 100 | B104: =ROUND([1]主表!$B102*0.5,0) -> 485 | C104: 9700 | D104: 485 | E104: 485 | G104: 1001;1006 | H104: 100;100 | I104: 1001 | J104: 100 | K104: 1006 | L104: 100 | M104: -1 | N104: 4
A105: 101 | B105: =ROUND([1]主表!$B103*0.5,0) -> 493 | C105: 9860 | D105: 493 | E105: 493 | G105: 1001;1006 | H105: 100;100 | I105: 1001 | J105: 100 | K105: 1006 | L105: 100 | M105: -1 | N105: 4
A106: 102 | B106: =ROUND([1]主表!$B104*0.5,0) -> 501 | C106: 10020 | D106: 501 | E106: 501 | G106: 1001;1006 | H106: 100;100 | I106: 1001 | J106: 100 | K106: 1006 | L106: 100 | M106: -1 | N106: 4
A107: 103 | B107: =ROUND([1]主表!$B105*0.5,0) -> 509 | C107: 10180 | D107: 509 | E107: 509 | G107: 1001;1006 | H107: 100;100 | I107: 1001 | J107: 100 | K107: 1006 | L107: 100 | M107: -1 | N107: 4
A108: 104 | B108: =ROUND([1]主表!$B106*0.5,0) -> 518 | C108: 10360 | D108: 518 | E108: 518 | G108: 1001;1006 | H108: 100;100 | I108: 1001 | J108: 100 | K108: 1006 | L108: 100 | M108: -1 | N108: 4
A109: 105 | B109: =ROUND([1]主表!$B107*0.5,0) -> 526 | C109: 10520 | D109: 526 | E109: 526 | G109: 1001;1006 | H109: 100;100 | I109: 1001 | J109: 100 | K109: 1006 | L109: 100 | M109: -1 | N109: 4
A110: 106 | B110: =ROUND([1]主表!$B108*0.5,0) -> 535 | C110: 10700 | D110: 535 | E110: 535 | G110: 1001;1006 | H110: 100;100 | I110: 1001 | J110: 100 | K110: 1006 | L110: 100 | M110: -1 | N110: 4
A111: 107 | B111: =ROUND([1]主表!$B109*0.5,0) -> 544 | C111: 10880 | D111: 544 | E111: 544 | G111: 1001;1006 | H111: 100;100 | I111: 1001 | J111: 100 | K111: 1006 | L111: 100 | M111: -1 | N111: 4
A112: 108 | B112: =ROUND([1]主表!$B110*0.5,0) -> 552 | C112: 11040 | D112: 552 | E112: 552 | G112: 1001;1006 | H112: 100;100 | I112: 1001 | J112: 100 | K112: 1006 | L112: 100 | M112: -1 | N112: 4
A113: 109 | B113: =ROUND([1]主表!$B111*0.5,0) -> 562 | C113: 11240 | D113: 562 | E113: 562 | G113: 1001;1006 | H113: 100;100 | I113: 1001 | J113: 100 | K113: 1006 | L113: 100 | M113: -1 | N113: 4
A114: 110 | B114: =ROUND([1]主表!$B112*0.5,0) -> 599 | C114: 11980 | D114: 599 | E114: 599 | G114: 1001;1006 | H114: 100;100 | I114: 1001 | J114: 100 | K114: 1006 | L114: 100 | M114: -1 | N114: 4
A115: 111 | B115: =ROUND([1]主表!$B113*0.5,0) -> 608 | C115: 12160 | D115: 608 | E115: 608 | G115: 1001;1006 | H115: 100;100 | I115: 1001 | J115: 100 | K115: 1006 | L115: 100 | M115: -1 | N115: 4
A116: 112 | B116: =ROUND([1]主表!$B114*0.5,0) -> 618 | C116: 12360 | D116: 618 | E116: 618 | G116: 1001;1006 | H116: 100;100 | I116: 1001 | J116: 100 | K116: 1006 | L116: 100 | M116: -1 | N116: 4
A117: 113 | B117: =ROUND([1]主表!$B115*0.5,0) -> 629 | C117: 12580 | D117: 629 | E117: 629 | G117: 1001;1006 | H117: 100;100 | I117: 1001 | J117: 100 | K117: 1006 | L117: 100 | M117: -1 | N117: 4
A118: 114 | B118: =ROUND([1]主表!$B116*0.5,0) -> 639 | C118: 12780 | D118: 639 | E118: 639 | G118: 1001;1006 | H118: 100;100 | I118: 1001 | J118: 100 | K118: 1006 | L118: 100 | M118: -1 | N118: 4
A119: 115 | B119: =ROUND([1]主表!$B117*0.5,0) -> 650 | C119: 13000 | D119: 650 | E119: 650 | G119: 1001;1006 | H119: 100;100 | I119: 1001 | J119: 100 | K119: 1006 | L119: 100 | M119: -1 | N119: 4
A120: 116 | B120: =ROUND([1]主表!$B118*0.5,0) -> 660 | C120: 13200 | D120: 660 | E120: 660 | G120: 1001;1006 | H120: 100;100 | I120: 1001 | J120: 100 | K120: 1006 | L120: 100 | M120: -1 | N120: 4
A121: 117 | B121: =ROUND([1]主表!$B119*0.5,0) -> 671 | C121: 13420 | D121: 671 | E121: 671 | G121: 1001;1006 | H121: 100;100 | I121: 1001 | J121: 100 | K121: 1006 | L121: 100 | M121: -1 | N121: 4
A122: 118 | B122: =ROUND([1]主表!$B120*0.5,0) -> 682 | C122: 13640 | D122: 682 | E122: 682 | G122: 1001;1006 | H122: 100;100 | I122: 1001 | J122: 100 | K122: 1006 | L122: 100 | M122: -1 | N122: 4
A123: 119 | B123: =ROUND([1]主表!$B121*0.5,0) -> 693 | C123: 13860 | D123: 693 | E123: 693 | G123: 1001;1006 | H123: 100;100 | I123: 1001 | J123: 100 | K123: 1006 | L123: 100 | M123: -1 | N123: 4
A124: 120 | B124: =ROUND([1]主表!$B122*0.5,0) -> 785 | C124: 15700 | D124: 785 | E124: 785 | G124: 1001;1006 | H124: 100;100 | I124: 1001 | J124: 100 | K124: 1006 | L124: 100 | M124: -1 | N124: 4
A125: 121 | B125: =ROUND([1]主表!$B123*0.5,0) -> 798 | C125: 15960 | D125: 798 | E125: 798 | G125: 1001;1006 | H125: 100;100 | I125: 1001 | J125: 100 | K125: 1006 | L125: 100 | M125: -1 | N125: 4
A126: 122 | B126: =ROUND([1]主表!$B124*0.5,0) -> 811 | C126: 16220 | D126: 811 | E126: 811 | G126: 1001;1006 | H126: 100;100 | I126: 1001 | J126: 100 | K126: 1006 | L126: 100 | M126: -1 | N126: 4
A127: 123 | B127: =ROUND([1]主表!$B125*0.5,0) -> 824 | C127: 16480 | D127: 824 | E127: 824 | G127: 1001;1006 | H127: 100;100 | I127: 1001 | J127: 100 | K127: 1006 | L127: 100 | M127: -1 | N127: 4
A128: 124 | B128: =ROUND([1]主表!$B126*0.5,0) -> 838 | C128: 16760 | D128: 838 | E128: 838 | G128: 1001;1006 | H128: 100;100 | I128: 1001 | J128: 100 | K128: 1006 | L128: 100 | M128: 40 | N128: 5
A129: 125 | B129: =ROUND([1]主表!$B127*0.5,0) -> 851 | C129: 17020 | D129: 851 | E129: 851 | G129: 1001;1006 | H129: 100;100 | I129: 1001 | J129: 100 | K129: 1006 | L129: 100 | M129: -1 | N129: 5
A130: 126 | B130: =ROUND([1]主表!$B128*0.5,0) -> 866 | C130: 17320 | D130: 866 | E130: 866 | G130: 1001;1006 | H130: 100;100 | I130: 1001 | J130: 100 | K130: 1006 | L130: 100 | M130: -1 | N130: 5
A131: 127 | B131: =ROUND([1]主表!$B129*0.5,0) -> 880 | C131: 17600 | D131: 880 | E131: 880 | G131: 1001;1006 | H131: 100;100 | I131: 1001 | J131: 100 | K131: 1006 | L131: 100 | M131: -1 | N131: =N100+1 -> 5
A132: 128 | B132: =ROUND([1]主表!$B130*0.5,0) -> 894 | C132: 17880 | D132: 894 | E132: 894 | G132: 1001;1006 | H132: 100;100 | I132: 1001 | J132: 100 | K132: 1006 | L132: 100 | M132: -1 | N132: 5
A133: 129 | B133: =ROUND([1]主表!$B131*0.5,0) -> 909 | C133: 18180 | D133: 909 | E133: 909 | G133: 1001;1006 | H133: 100;100 | I133: 1001 | J133: 100 | K133: 1006 | L133: 100 | M133: -1 | N133: 5
A134: 130 | B134: =ROUND([1]主表!$B132*0.5,0) -> 969 | C134: =B134*20 -> 19380 | D134: =B134 -> 969 | E134: =B134 -> 969 | G134: =_xlfn.TEXTJOIN(";",1,I134,K134) -> 1001;1006 | H134: =_xlfn.TEXTJOIN(";",1,J134,L134) -> 100;100 | I134: 1001 | J134: 100 | K134: 1006 | L134: 100 | M134: -1 | N134: 5
A135: 131 | B135: =ROUND([1]主表!$B133*0.5,0) -> 985 | C135: 19700 | D135: 985 | E135: 985 | G135: 1001;1006 | H135: 100;100 | I135: 1001 | J135: 100 | K135: 1006 | L135: 100 | M135: -1 | N135: 5
A136: 132 | B136: =ROUND([1]主表!$B134*0.5,0) -> 1001 | C136: 20020 | D136: 1001 | E136: 1001 | G136: 1001;1006 | H136: 100;100 | I136: 1001 | J136: 100 | K136: 1006 | L136: 100 | M136: -1 | N136: 5
A137: 133 | B137: =ROUND([1]主表!$B135*0.5,0) -> 1018 | C137: 20360 | D137: 1018 | E137: 1018 | G137: 1001;1006 | H137: 100;100 | I137: 1001 | J137: 100 | K137: 1006 | L137: 100 | M137: -1 | N137: 5
A138: 134 | B138: =ROUND([1]主表!$B136*0.5,0) -> 1034 | C138: 20680 | D138: 1034 | E138: 1034 | G138: 1001;1006 | H138: 100;100 | I138: 1001 | J138: 100 | K138: 1006 | L138: 100 | M138: -1 | N138: 5
A139: 135 | B139: =ROUND([1]主表!$B137*0.5,0) -> 1051 | C139: 21020 | D139: 1051 | E139: 1051 | G139: 1001;1006 | H139: 100;100 | I139: 1001 | J139: 100 | K139: 1006 | L139: 100 | M139: -1 | N139: 5
A140: 136 | B140: =ROUND([1]主表!$B138*0.5,0) -> 1069 | C140: 21380 | D140: 1069 | E140: 1069 | G140: 1001;1006 | H140: 100;100 | I140: 1001 | J140: 100 | K140: 1006 | L140: 100 | M140: -1 | N140: 5
A141: 137 | B141: =ROUND([1]主表!$B139*0.5,0) -> 1086 | C141: 21720 | D141: 1086 | E141: 1086 | G141: 1001;1006 | H141: 100;100 | I141: 1001 | J141: 100 | K141: 1006 | L141: 100 | M141: -1 | N141: 5
A142: 138 | B142: =ROUND([1]主表!$B140*0.5,0) -> 1104 | C142: 22080 | D142: 1104 | E142: 1104 | G142: 1001;1006 | H142: 100;100 | I142: 1001 | J142: 100 | K142: 1006 | L142: 100 | M142: -1 | N142: 5
A143: 139 | B143: =ROUND([1]主表!$B141*0.5,0) -> 1122 | C143: 22440 | D143: 1122 | E143: 1122 | G143: 1001;1006 | H143: 100;100 | I143: 1001 | J143: 100 | K143: 1006 | L143: 100 | M143: -1 | N143: 5
A144: 140 | B144: =ROUND([1]主表!$B142*0.5,0) -> 1196 | C144: 23920 | D144: 1196 | E144: 1196 | G144: 1001;1006 | H144: 100;100 | I144: 1001 | J144: 100 | K144: 1006 | L144: 100 | M144: -1 | N144: 5
A145: 141 | B145: =ROUND([1]主表!$B143*0.5,0) -> 1216 | C145: 24320 | D145: 1216 | E145: 1216 | G145: 1001;1006 | H145: 100;100 | I145: 1001 | J145: 100 | K145: 1006 | L145: 100 | M145: -1 | N145: 5
A146: 142 | B146: =ROUND([1]主表!$B144*0.5,0) -> 1236 | C146: 24720 | D146: 1236 | E146: 1236 | G146: 1001;1006 | H146: 100;100 | I146: 1001 | J146: 100 | K146: 1006 | L146: 100 | M146: -1 | N146: 5
A147: 143 | B147: =ROUND([1]主表!$B145*0.5,0) -> 1256 | C147: 25120 | D147: 1256 | E147: 1256 | G147: 1001;1006 | H147: 100;100 | I147: 1001 | J147: 100 | K147: 1006 | L147: 100 | M147: -1 | N147: 5
A148: 144 | B148: =ROUND([1]主表!$B146*0.5,0) -> 1277 | C148: 25540 | D148: 1277 | E148: 1277 | G148: 1001;1006 | H148: 100;100 | I148: 1001 | J148: 100 | K148: 1006 | L148: 100 | M148: -1 | N148: 5
A149: 145 | B149: =ROUND([1]主表!$B147*0.5,0) -> 1298 | C149: 25960 | D149: 1298 | E149: 1298 | G149: 1001;1006 | H149: 100;100 | I149: 1001 | J149: 100 | K149: 1006 | L149: 100 | M149: -1 | N149: 5
A150: 146 | B150: =ROUND([1]主表!$B148*0.5,0) -> 1319 | C150: 26380 | D150: 1319 | E150: 1319 | G150: 1001;1006 | H150: 100;100 | I150: 1001 | J150: 100 | K150: 1006 | L150: 100 | M150: -1 | N150: 5
A151: 147 | B151: =ROUND([1]主表!$B149*0.5,0) -> 1341 | C151: 26820 | D151: 1341 | E151: 1341 | G151: 1001;1006 | H151: 100;100 | I151: 1001 | J151: 100 | K151: 1006 | L151: 100 | M151: -1 | N151: 5
A152: 148 | B152: =ROUND([1]主表!$B150*0.5,0) -> 1363 | C152: 27260 | D152: 1363 | E152: 1363 | G152: 1001;1006 | H152: 100;100 | I152: 1001 | J152: 100 | K152: 1006 | L152: 100 | M152: -1 | N152: 5
A153: 149 | B153: =ROUND([1]主表!$B151*0.5,0) -> 1386 | C153: 27720 | D153: 1386 | E153: 1386 | G153: 1001;1006 | H153: 100;100 | I153: 1001 | J153: 100 | K153: 1006 | L153: 100 | M153: -1 | N153: 5
A154: 150 | B154: =ROUND([1]主表!$B152*0.5,0) -> 1568 | C154: 31360 | D154: 1568 | E154: 1568 | G154: 1001;1006 | H154: 100;100 | I154: 1001 | J154: 100 | K154: 1006 | L154: 100 | M154: -1 | N154: 5
A155: 151 | B155: =ROUND([1]主表!$B153*0.5,0) -> 1594 | C155: 31880 | D155: 1594 | E155: 1594 | G155: 1001;1006 | H155: 100;100 | I155: 1001 | J155: 100 | K155: 1006 | L155: 100 | M155: -1 | N155: 5
A156: 152 | B156: =ROUND([1]主表!$B154*0.5,0) -> 1620 | C156: 32400 | D156: 1620 | E156: 1620 | G156: 1001;1006 | H156: 100;100 | I156: 1001 | J156: 100 | K156: 1006 | L156: 100 | M156: -1 | N156: 5
A157: 153 | B157: =ROUND([1]主表!$B155*0.5,0) -> 1647 | C157: 32940 | D157: 1647 | E157: 1647 | G157: 1001;1006 | H157: 100;100 | I157: 1001 | J157: 100 | K157: 1006 | L157: 100 | M157: -1 | N157: 5
A158: 154 | B158: =ROUND([1]主表!$B156*0.5,0) -> 1674 | C158: 33480 | D158: 1674 | E158: 1674 | G158: 1001;1006 | H158: 100;100 | I158: 1001 | J158: 100 | K158: 1006 | L158: 100 | M158: -1 | N158: 5
A159: 155 | B159: =ROUND([1]主表!$B157*0.5,0) -> 1702 | C159: 34040 | D159: 1702 | E159: 1702 | G159: 1001;1006 | H159: 100;100 | I159: 1001 | J159: 100 | K159: 1006 | L159: 100 | M159: 50 | N159: 6
A160: 156 | B160: =ROUND([1]主表!$B158*0.5,0) -> 1730 | C160: 34600 | D160: 1730 | E160: 1730 | G160: 1001;1006 | H160: 100;100 | I160: 1001 | J160: 100 | K160: 1006 | L160: 100 | M160: -1 | N160: 6
A161: 157 | B161: =ROUND([1]主表!$B159*0.5,0) -> 1758 | C161: 35160 | D161: 1758 | E161: 1758 | G161: 1001;1006 | H161: 100;100 | I161: 1001 | J161: 100 | K161: 1006 | L161: 100 | M161: -1 | N161: 6
A162: 158 | B162: =ROUND([1]主表!$B160*0.5,0) -> 1787 | C162: 35740 | D162: 1787 | E162: 1787 | G162: 1001;1006 | H162: 100;100 | I162: 1001 | J162: 100 | K162: 1006 | L162: 100 | M162: -1 | N162: 6
A163: 159 | B163: =ROUND([1]主表!$B161*0.5,0) -> 1817 | C163: 36340 | D163: 1817 | E163: 1817 | G163: 1001;1006 | H163: 100;100 | I163: 1001 | J163: 100 | K163: 1006 | L163: 100 | M163: -1 | N163: 6
A164: 160 | B164: =ROUND([1]主表!$B162*0.5,0) -> 1936 | C164: 38720 | D164: 1936 | E164: 1936 | G164: 1001;1006 | H164: 100;100 | I164: 1001 | J164: 100 | K164: 1006 | L164: 100 | M164: -1 | N164: 6
A165: 161 | B165: =ROUND([1]主表!$B163*0.5,0) -> 1968 | C165: 39360 | D165: 1968 | E165: 1968 | G165: 1001;1006 | H165: 100;100 | I165: 1001 | J165: 100 | K165: 1006 | L165: 100 | M165: -1 | N165: 6
A166: 162 | B166: =ROUND([1]主表!$B164*0.5,0) -> 2001 | C166: 40020 | D166: 2001 | E166: 2001 | G166: 1001;1006 | H166: 100;100 | I166: 1001 | J166: 100 | K166: 1006 | L166: 100 | M166: -1 | N166: 6
A167: 163 | B167: =ROUND([1]主表!$B165*0.5,0) -> 2034 | C167: 40680 | D167: 2034 | E167: 2034 | G167: 1001;1006 | H167: 100;100 | I167: 1001 | J167: 100 | K167: 1006 | L167: 100 | M167: -1 | N167: 6
A168: 164 | B168: =ROUND([1]主表!$B166*0.5,0) -> 2067 | C168: 41340 | D168: 2067 | E168: 2067 | G168: 1001;1006 | H168: 100;100 | I168: 1001 | J168: 100 | K168: 1006 | L168: 100 | M168: -1 | N168: 6
A169: 165 | B169: =ROUND([1]主表!$B167*0.5,0) -> 2101 | C169: 42020 | D169: 2101 | E169: 2101 | G169: 1001;1006 | H169: 100;100 | I169: 1001 | J169: 100 | K169: 1006 | L169: 100 | M169: -1 | N169: 6
A170: 166 | B170: =ROUND([1]主表!$B168*0.5,0) -> 2136 | C170: 42720 | D170: 2136 | E170: 2136 | G170: 1001;1006 | H170: 100;100 | I170: 1001 | J170: 100 | K170: 1006 | L170: 100 | M170: -1 | N170: 6
A171: 167 | B171: =ROUND([1]主表!$B169*0.5,0) -> 2171 | C171: 43420 | D171: 2171 | E171: 2171 | G171: 1001;1006 | H171: 100;100 | I171: 1001 | J171: 100 | K171: 1006 | L171: 100 | M171: -1 | N171: 6
A172: 168 | B172: =ROUND([1]主表!$B170*0.5,0) -> 2207 | C172: 44140 | D172: 2207 | E172: 2207 | G172: 1001;1006 | H172: 100;100 | I172: 1001 | J172: 100 | K172: 1006 | L172: 100 | M172: -1 | N172: 6
A173: 169 | B173: =ROUND([1]主表!$B171*0.5,0) -> 2243 | C173: 44860 | D173: 2243 | E173: 2243 | G173: 1001;1006 | H173: 100;100 | I173: 1001 | J173: 100 | K173: 1006 | L173: 100 | M173: -1 | N173: 6
A174: 170 | B174: =ROUND([1]主表!$B172*0.5,0) -> 2391 | C174: 47820 | D174: 2391 | E174: 2391 | G174: 1001;1006 | H174: 100;100 | I174: 1001 | J174: 100 | K174: 1006 | L174: 100 | M174: -1 | N174: 6
A175: 171 | B175: =ROUND([1]主表!$B173*0.5,0) -> 2430 | C175: 48600 | D175: 2430 | E175: 2430 | G175: 1001;1006 | H175: 100;100 | I175: 1001 | J175: 100 | K175: 1006 | L175: 100 | M175: -1 | N175: 6
A176: 172 | B176: =ROUND([1]主表!$B174*0.5,0) -> 2470 | C176: 49400 | D176: 2470 | E176: 2470 | G176: 1001;1006 | H176: 100;100 | I176: 1001 | J176: 100 | K176: 1006 | L176: 100 | M176: -1 | N176: 6
A177: 173 | B177: =ROUND([1]主表!$B175*0.5,0) -> 2511 | C177: 50220 | D177: 2511 | E177: 2511 | G177: 1001;1006 | H177: 100;100 | I177: 1001 | J177: 100 | K177: 1006 | L177: 100 | M177: -1 | N177: 6
A178: 174 | B178: =ROUND([1]主表!$B176*0.5,0) -> 2552 | C178: 51040 | D178: 2552 | E178: 2552 | G178: 1001;1006 | H178: 100;100 | I178: 1001 | J178: 100 | K178: 1006 | L178: 100 | M178: -1 | N178: 6
A179: 175 | B179: =ROUND([1]主表!$B177*0.5,0) -> 2594 | C179: 51880 | D179: 2594 | E179: 2594 | G179: 1001;1006 | H179: 100;100 | I179: 1001 | J179: 100 | K179: 1006 | L179: 100 | M179: -1 | N179: 6
A180: 176 | B180: =ROUND([1]主表!$B178*0.5,0) -> 2637 | C180: 52740 | D180: 2637 | E180: 2637 | G180: 1001;1006 | H180: 100;100 | I180: 1001 | J180: 100 | K180: 1006 | L180: 100 | M180: -1 | N180: 6
A181: 177 | B181: =ROUND([1]主表!$B179*0.5,0) -> 2680 | C181: 53600 | D181: 2680 | E181: 2680 | G181: 1001;1006 | H181: 100;100 | I181: 1001 | J181: 100 | K181: 1006 | L181: 100 | M181: -1 | N181: 6
A182: 178 | B182: =ROUND([1]主表!$B180*0.5,0) -> 2724 | C182: 54480 | D182: 2724 | E182: 2724 | G182: 1001;1006 | H182: 100;100 | I182: 1001 | J182: 100 | K182: 1006 | L182: 100 | M182: -1 | N182: 6
A183: 179 | B183: =ROUND([1]主表!$B181*0.5,0) -> 2769 | C183: 55380 | D183: 2769 | E183: 2769 | G183: 1001;1006 | H183: 100;100 | I183: 1001 | J183: 100 | K183: 1006 | L183: 100 | M183: -1 | N183: 6
A184: 180 | B184: =ROUND([1]主表!$B182*0.5,0) -> 3134 | C184: 62680 | D184: 3134 | E184: 3134 | G184: 1001;1006 | H184: 100;100 | I184: 1001 | J184: 100 | K184: 1006 | L184: 100 | M184: -1 | N184: 6
A185: 181 | B185: =ROUND([1]主表!$B183*0.5,0) -> 3186 | C185: 63720 | D185: 3186 | E185: 3186 | G185: 1001;1006 | H185: 100;100 | I185: 1001 | J185: 100 | K185: 1006 | L185: 100 | M185: -1 | N185: 6
A186: 182 | B186: =ROUND([1]主表!$B184*0.5,0) -> 3238 | C186: 64760 | D186: 3238 | E186: 3238 | G186: 1001;1006 | H186: 100;100 | I186: 1001 | J186: 100 | K186: 1006 | L186: 100 | M186: -1 | N186: 6
A187: 183 | B187: =ROUND([1]主表!$B185*0.5,0) -> 3292 | C187: 65840 | D187: 3292 | E187: 3292 | G187: 1001;1006 | H187: 100;100 | I187: 1001 | J187: 100 | K187: 1006 | L187: 100 | M187: -1 | N187: 6
A188: 184 | B188: =ROUND([1]主表!$B186*0.5,0) -> 3346 | C188: 66920 | D188: 3346 | E188: 3346 | G188: 1001;1006 | H188: 100;100 | I188: 1001 | J188: 100 | K188: 1006 | L188: 100 | M188: -1 | N188: 6
A189: 185 | B189: =ROUND([1]主表!$B187*0.5,0) -> 3401 | C189: 68020 | D189: 3401 | E189: 3401 | G189: 1001;1006 | H189: 100;100 | I189: 1001 | J189: 100 | K189: 1006 | L189: 100 | M189: -1 | N189: 6
A190: 186 | B190: =ROUND([1]主表!$B188*0.5,0) -> 3457 | C190: 69140 | D190: 3457 | E190: 3457 | G190: 1001;1006 | H190: 100;100 | I190: 1001 | J190: 100 | K190: 1006 | L190: 100 | M190: 60 | N190: 7
A191: 187 | B191: =ROUND([1]主表!$B189*0.5,0) -> 3514 | C191: 70280 | D191: 3514 | E191: 3514 | G191: 1001;1006 | H191: 100;100 | I191: 1001 | J191: 100 | K191: 1006 | L191: 100 | M191: -1 | N191: 7
A192: 188 | B192: =ROUND([1]主表!$B190*0.5,0) -> 3572 | C192: 71440 | D192: 3572 | E192: 3572 | G192: 1001;1006 | H192: 100;100 | I192: 1001 | J192: 100 | K192: 1006 | L192: 100 | M192: -1 | N192: 7
A193: 189 | B193: =ROUND([1]主表!$B191*0.5,0) -> 3631 | C193: 72620 | D193: 3631 | E193: 3631 | G193: 1001;1006 | H193: 100;100 | I193: 1001 | J193: 100 | K193: 1006 | L193: 100 | M193: -1 | N193: 7
A194: 190 | B194: =ROUND([1]主表!$B192*0.5,0) -> 3870 | C194: 77400 | D194: 3870 | E194: 3870 | G194: 1001;1006 | H194: 100;100 | I194: 1001 | J194: 100 | K194: 1006 | L194: 100 | M194: -1 | N194: 7
A195: 191 | B195: =ROUND([1]主表!$B193*0.5,0) -> 3934 | C195: 78680 | D195: 3934 | E195: 3934 | G195: 1001;1006 | H195: 100;100 | I195: 1001 | J195: 100 | K195: 1006 | L195: 100 | M195: -1 | N195: =N164+1 -> 7
A196: 192 | B196: =ROUND([1]主表!$B194*0.5,0) -> 3998 | C196: 79960 | D196: 3998 | E196: 3998 | G196: 1001;1006 | H196: 100;100 | I196: 1001 | J196: 100 | K196: 1006 | L196: 100 | M196: -1 | N196: 7
A197: 193 | B197: =ROUND([1]主表!$B195*0.5,0) -> 4064 | C197: 81280 | D197: 4064 | E197: 4064 | G197: 1001;1006 | H197: 100;100 | I197: 1001 | J197: 100 | K197: 1006 | L197: 100 | M197: -1 | N197: 7
A198: 194 | B198: =ROUND([1]主表!$B196*0.5,0) -> 4131 | C198: =B198*20 -> 82620 | D198: =B198 -> 4131 | E198: =B198 -> 4131 | G198: =_xlfn.TEXTJOIN(";",1,I198,K198) -> 1001;1006 | H198: =_xlfn.TEXTJOIN(";",1,J198,L198) -> 100;100 | I198: 1001 | J198: 100 | K198: 1006 | L198: 100 | M198: -1 | N198: 7
A199: 195 | B199: =ROUND([1]主表!$B197*0.5,0) -> 4199 | C199: 83980 | D199: 4199 | E199: 4199 | G199: 1001;1006 | H199: 100;100 | I199: 1001 | J199: 100 | K199: 1006 | L199: 100 | M199: -1 | N199: 7
A200: 196 | B200: =ROUND([1]主表!$B198*0.5,0) -> 4268 | C200: 85360 | D200: 4268 | E200: 4268 | G200: 1001;1006 | H200: 100;100 | I200: 1001 | J200: 100 | K200: 1006 | L200: 100 | M200: -1 | N200: 7
A201: 197 | B201: =ROUND([1]主表!$B199*0.5,0) -> 4339 | C201: 86780 | D201: 4339 | E201: 4339 | G201: 1001;1006 | H201: 100;100 | I201: 1001 | J201: 100 | K201: 1006 | L201: 100 | M201: -1 | N201: 7
... 103 more rows
